bitfinex-derivatives/quotes_ETHF0:USTF0_20260201
["timestamp","ask_amount","ask_price","bid_price","bid_amount"]
[1769963189478,0.00525275,2323.4,2322.0,7.05307798]
[1769963189778,0.00525275,2323.4,2322.1,7.05307798]
[1769963190383,14.06151147,2324.8,2322.1,7.05307798]
[1769963190384,0.21533,2324.2,2322.1,7.05307798]
[1769963190578,0.21527,2324.8,2322.6,7.05307798]
[1769963190880,0.21527,2324.8,2322.5,3.41421301]
[1769963190881,0.21531,2324.4,2322.8,7.05307798]
[1769963191277,0.21532,2324.3,2322.8,7.05307798]
[1769963191478,0.21534,2324.1,2322.8,7.05307798]
[1769963191679,0.21535,2324.0,2322.8,7.05307798]
[1769963192276,5.94104214,2324.5,2322.8,7.05307798]
[1769963192475,0.21537,2323.8,2322.8,7.05307798]
[1769963193686,0.21532,2324.3,2322.8,7.05307798]
[1769963193886,0.21533,2324.2,2322.8,7.05307798]
[1769963195182,6.10562425,2324.6,2322.8,7.05307798]
[1769963195383,0.21543,2323.1,2322.4,7.05307798]
[1769963195683,6.59206487,2323.1,2321.2,3.878]
[1769963195892,0.21546,2322.8,2321.2,3.878]
[1769963196101,6.59206487,2323.6,2321.2,3.878]
[1769963196391,6.59110363,2323.7,2321.3,3.41421301]
[1769963196586,0.21543,2323.1,2321.3,3.41421301]
[1769963196891,10.46810363,2324.1,2321.6,2.49538843]
[1769963197094,10.46810363,2324.1,2321.5,3.66134644]
[1769963197095,0.21542,2323.2,2321.5,2.5002707]
[1769963197391,0.21542,2323.2,2321.8,3.41421301]
[1769963197690,6.47762969,2323.8,2321.7,6.8926146]
[1769963197988,0.21544,2323.0,2321.7,6.8926146]
[1769963198188,0.21545,2322.9,2321.7,6.8926146]
[1769963198389,0.21547,2322.7,2321.7,6.8926146]
[1769963198580,6.47762969,2323.8,2321.7,6.8926146]
[1769963199086,6.47762969,2323.4,2321.7,6.8926146]
[1769963199289,0.21549,2322.4,2321.7,6.8926146]
[1769963199684,6.47762969,2323.0,2321.5,0.00488227]
[1769963199886,2.801,2323.3,2320.8,6.8926146]
[1769963199887,6.47762969,2323.1,2320.8,6.8926146]
[1769963200190,0.21545,2322.9,2320.9,6.8926146]
[1769963200396,0.21545,2322.9,2321.1,6.89749687]
[1769963200690,0.21546,2322.8,2321.4,6.8926146]
[1769963200989,0.00343745,2322.9,2321.4,6.8926146]
[1769963201493,0.00343745,2322.9,2321.9,6.8926146]
[1769963201995,0.00343745,2322.9,2322.1,6.8926146]
[1769963202187,0.00343745,2322.9,2322.3,0.00488227]
[1769963202486,0.00343745,2322.9,2322.1,6.89749687]
[1769963202686,6.46219467,2323.7,2322.3,6.89749687]
[1769963202894,0.21542,2323.2,2322.3,6.8926146]
[1769963203089,6.46219467,2323.7,2322.3,6.8926146]
[1769963203287,0.2153,2324.5,2323.2,6.8926146]
[1769963203684,0.21531,2324.4,2323.4,6.8926146]
[1769963204191,0.21531,2324.4,2323.2,0.00376681]
[1769963204394,0.21533,2324.2,2323.2,6.89638141]
[1769963204691,0.00179671,2324.5,2322.3,6.8926146]
[1769963204692,6.45579158,2324.0,2322.3,6.8926146]
[1769963205092,0.21542,2323.3,2322.3,6.8926146]
[1769963205293,0.21535,2324.0,2322.3,6.8926146]
[1769963205594,0.21535,2324.0,2322.5,7.38464538]
[1769963205797,0.21535,2324.0,2322.7,7.38464538]
[1769963206094,0.21535,2324.0,2322.9,7.38464538]
[1769963206290,0.00179671,2324.5,2322.9,7.38464538]
[1769963206489,0.00179671,2324.5,2323.3,7.38464538]
[1769963206995,0.00179671,2324.5,2322.5,8.33321301]
[1769963206996,0.00179671,2324.5,2323.6,7.38952765]
[1769963207291,6.49047224,2325.8,2324.1,0.00488227]
[1769963207489,0.21513,2326.4,2324.3,7.38464538]
[1769963207891,0.21513,2326.4,2324.7,7.38464538]
[1769963208083,6.49047224,2326.7,2324.9,7.38464538]
[1769963208283,6.43271232,2326.4,2324.9,7.38912627]
[1769963208488,0.21513,2326.4,2325.1,7.38464538]
[1769963208691,0.21513,2326.4,2325.4,7.38464538]
[1769963208994,0.00376681,2326.7,2325.8,7.38464538]
[1769963209292,0.00376681,2326.7,2325.4,7.38464538]
[1769963209490,0.00376681,2326.7,2325.7,7.38464538]
[1769963209691,0.21511,2326.6,2325.3,7.38464538]
[1769963209994,0.21511,2326.6,2325.3,7.38952765]
[1769963210193,0.21511,2326.6,2325.7,7.38464538]
[1769963210595,6.36764927,2326.7,2325.3,7.38464538]
[1769963210794,0.21515,2326.1,2325.3,7.38464538]
[1769963210996,0.21518,2325.8,2324.9,7.38912627]
[1769963211395,0.21518,2325.8,2325.0,7.38464538]
[1769963211596,0.21512,2326.5,2325.2,7.38464538]
[1769963211797,6.36764927,2326.7,2325.2,7.38464538]
[1769963211996,0.21515,2326.1,2325.2,7.38464538]
[1769963212493,0.21515,2326.1,2325.4,7.38464538]
[1769963212693,6.36764927,2326.7,2325.4,7.38464538]
[1769963212898,0.21504,2327.3,2326.0,7.38464538]
[1769963213493,4.08998,2328.0,2326.9,7.38464538]
[1769963213697,3.875,2328.0,2326.9,7.38464538]
[1769963213887,0.21504,2327.3,2326.9,7.38944974]
[1769963214087,0.21504,2327.3,2326.9,0.00480436]
[1769963214591,5.56452553,2327.9,2325.5,7.38464538]
[1769963214792,5.56452553,2327.8,2325.8,7.38464538]
[1769963214994,0.21507,2327.0,2325.8,7.38464538]
[1769963215196,2.811,2327.9,2325.8,7.38464538]
[1769963215197,0.21511,2326.6,2325.8,7.38464538]
[1769963215589,0.21513,2326.4,2325.8,7.38464538]
[1769963215892,0.00480435,2326.6,2325.8,7.38982784]
[1769963216190,0.21512,2326.5,2325.8,7.38982784]
[1769963216397,0.2151,2326.7,2325.8,7.38982784]
[1769963216790,0.21511,2326.6,2326.0,0.00488227]
[1769963216990,0.21511,2326.6,2325.8,7.38982784]
[1769963217185,5.6845046,2327.3,2325.8,7.38982784]
[1769963217186,0.21512,2326.5,2325.8,7.38982784]
[1769963217385,5.6845046,2328.1,2326.0,7.38464538]
[1769963217594,0.21502,2327.5,2326.0,11.26352765]
[1769963217799,0.21495,2328.3,2327.1,0.00488227]
[1769963218092,5.6845046,2329.8,2327.3,7.38464538]
[1769963218299,0.21486,2329.3,2327.8,7.38464538]
[1769963218492,0.21479,2330.0,2327.8,7.39008947]
[1769963218690,5.5133494,2330.2,2328.3,7.38464538]
[1769963218887,5.5133494,2329.9,2328.3,7.38464538]
[1769963219087,0.21492,2328.6,2327.8,0.00544409]
[1769963219390,0.21504,2327.4,2326.1,7.38464538]
[1769963219595,3.41421301,2329.4,2326.9,7.38464538]
[1769963219895,0.21499,2327.9,2326.2,7.38464538]
[1769963220091,0.21495,2328.3,2326.3,7.38464538]
[1769963220294,0.00353801,2328.3,2326.8,7.38464538]
[1769963220497,0.21478,2330.2,2328.0,7.38464538]
[1769963220700,7.68329846,2331.6,2328.0,7.38464538]
[1769963220701,0.21463,2331.8,2328.7,7.38464538]
[1769963220906,2.1380987,2334.0,2331.0,7.38464538]
[1769963221091,0.21445,2333.8,2331.7,10.79885839]
[1769963221290,0.01130692,2334.1,2331.8,7.38464538]
[1769963221493,0.01130692,2334.1,2332.4,7.38464538]
[1769963221701,5.61027908,2333.8,2332.4,7.38464538]
[1769963221897,5.39582908,2333.8,2332.4,7.38464538]
[1769963222199,5.39582908,2333.8,2331.7,0.0048962]
[1769963222200,5.39582908,2333.1,2331.7,0.0048962]
[1769963222391,5.32373371,2331.7,2330.2,7.38464538]
[1769963222595,5.53837371,2331.7,2329.8,7.38464538]
[1769963222793,8.16736657,2332.1,2329.1,3.375]
[1769963222794,4.29636657,2330.7,2329.1,7.38464538]
[1769963222995,5.32373371,2331.2,2329.1,7.38464538]
[1769963223293,0.21473,2330.7,2329.1,7.38786842]
[1769963223501,9.62010028,2330.9,2329.1,7.38786842]
[1769963223798,5.32373371,2329.8,2328.3,7.38464538]
[1769963223990,2.894,2330.9,2327.2,7.38464538]
[1769963223991,5.53861371,2329.1,2327.2,7.38464538]
[1769963224194,0.21488,2329.1,2327.2,7.38464538]
[1769963224391,5.15140124,2330.1,2328.0,3.41421301]
[1769963224599,5.15140124,2330.1,2328.2,7.38464538]
[1769963224804,4.93661124,2330.0,2328.2,7.38912609]
[1769963225099,0.0053063,2330.1,2325.8,3.66238133]
[1769963225100,4.93661124,2329.7,2327.7,7.38464538]
[1769963225402,0.2200863,2330.1,2327.8,7.38464538]
[1769963225403,0.21483,2329.6,2327.8,7.38464538]
[1769963225601,0.0053063,2330.1,2328.0,7.38464538]
[1769963226000,0.0053063,2330.1,2328.0,7.38966374]
[1769963226198,0.2148,2329.9,2328.0,7.38966374]
[1769963226399,4.992874,2329.4,2328.0,0.00501836]
[1769963226594,8.861874,2329.9,2328.0,7.38966374]
[1769963226899,0.21485,2329.4,2328.0,7.38966374]
[1769963227294,3.869,2329.9,2328.0,7.38966374]
[1769963227699,0.21489,2329.0,2328.0,7.38966374]
[1769963227998,0.2149,2328.8,2327.6,6.95213631]
[1769963228401,4.29636657,2328.7,2327.6,6.95213631]
[1769963228600,4.29636657,2328.5,2327.6,6.95213631]
[1769963228796,4.29636657,2328.1,2325.6,3.41421301]
[1769963228998,3.41421301,2329.2,2325.6,7.28321301]
[1769963228999,0.215,2327.8,2325.6,7.28321301]
[1769963229205,0.21502,2327.5,2325.6,7.28321301]
[1769963229906,0.21495,2328.3,2326.3,3.41421301]
[1769963230103,0.21496,2328.2,2325.6,7.28677953]
[1769963230405,0.21496,2328.2,2325.6,3.87256652]
[1769963230605,0.21497,2328.1,2325.7,0.21519]
[1769963230805,0.00310912,2328.1,2325.8,6.95213631]
[1769963231008,0.00310912,2328.1,2326.0,6.95213631]
[1769963232205,4.29636657,2327.9,2326.0,6.95213631]
[1769963232406,0.00310912,2328.1,2326.0,6.95213631]
[1769963232606,0.21807912,2328.1,2326.0,6.95213631]
[1769963232906,0.21498,2328.0,2326.0,6.95213631]
[1769963233307,0.00310912,2328.1,2326.0,6.95213631]
[1769963233508,0.21506,2327.1,2326.0,6.95213631]
[1769963234017,4.29636657,2326.2,2325.7,1.1343702]
[1769963234219,0.00543462,2326.2,2325.7,8.08650651]
[1769963234416,4.29636657,2325.9,2325.7,8.08650651]
[1769963234716,0.21512,2326.5,2325.7,8.08650651]
[1769963235021,7.46983181,2327.2,2325.7,8.08650651]
[1769963235223,7.46983181,2327.0,2325.7,1.1343702]
[1769963235519,3.869,2327.3,2324.8,6.95213631]
[1769963235520,0.21514,2326.2,2324.8,6.95213631]
[1769963235820,7.46983181,2326.5,2324.8,6.95213631]
[1769963236119,7.46983181,2327.0,2324.8,6.95213631]
[1769963236317,0.21506,2327.1,2324.8,6.95213631]
[1769963236525,0.21846644,2327.1,2325.0,6.95213631]
[1769963236924,0.00340644,2327.1,2325.0,6.95213631]
[1769963237226,0.00340644,2327.1,2325.0,7.16738631]
[1769963237419,0.00340644,2327.1,2325.0,6.95213631]
[1769963237817,0.00340644,2327.1,2325.2,7.16736631]
[1769963238023,0.21846644,2327.1,2325.2,6.95213631]
[1769963238418,0.00340644,2327.1,2325.2,6.95213631]
[1769963238619,0.21509,2326.8,2325.2,6.95213631]
[1769963240024,7.47323825,2327.1,2325.2,6.95213631]
[1769963240221,7.46983181,2327.0,2325.2,6.95213631]
[1769963240420,0.21519,2325.7,2324.8,0.00322604]
[1769963240618,7.46983181,2326.1,2324.8,0.00322604]
[1769963241021,0.21522,2325.4,2324.8,0.00322604]
[1769963241221,3.87340644,2327.1,2324.3,6.95213631]
[1769963241222,0.21523,2325.3,2324.3,6.95213631]
[1769963241422,7.46983181,2325.8,2324.3,6.95213631]
[1769963241921,7.46983181,2325.8,2323.2,6.95213631]
[1769963242123,0.21529,2324.6,2323.2,6.95772749]
[1769963242327,0.2153,2324.5,2323.2,6.95772749]
[1769963242629,0.21519,2325.7,2323.2,7.17313749]
[1769963242831,0.21519,2325.7,2323.4,6.95213631]
[1769963243031,7.46983181,2325.7,2323.6,6.95213631]
[1769963243223,0.21522,2325.4,2323.6,6.95213631]
[1769963243427,0.00465319,2325.8,2323.9,6.95213631]
[1769963243726,0.00465319,2325.8,2324.2,6.95213631]
[1769963243927,0.00465319,2325.8,2324.1,0.21533]
[1769963243928,0.00465319,2325.8,2324.4,6.95213631]
[1769963244927,7.474485,2325.8,2323.9,6.95213631]
[1769963245122,0.21522,2325.4,2323.9,6.95213631]
[1769963245329,0.00465319,2325.8,2323.9,6.95213631]
[1769963245627,0.21983319,2325.8,2323.9,6.95213631]
[1769963245832,0.21519,2325.7,2323.9,6.95213631]
[1769963246217,0.00465319,2325.8,2323.9,6.95213631]
[1769963246420,0.21508,2326.9,2324.7,6.95213631]
[1769963246625,0.21511,2326.6,2324.7,7.16741631]
[1769963247326,3.871,2327.6,2324.9,6.95213631]
[1769963247532,3.8754098,2327.6,2325.3,6.95213631]
[1769963247731,0.0044098,2327.6,2325.5,6.95213631]
[1769963248031,0.21496,2328.3,2326.2,6.95213631]
[1769963248230,3.872,2328.6,2326.4,6.95213631]
[1769963248430,0.21498,2328.0,2326.4,6.95213631]
[1769963248629,7.46983181,2328.5,2326.4,6.95213631]
[1769963248831,0.21499,2327.9,2326.4,6.95213631]
[1769963249226,0.21934537,2327.9,2326.4,6.95213631]
[1769963249531,0.21492,2328.6,2326.4,6.95213631]
[1769963249720,0.21495,2328.3,2326.6,6.95213631]
[1769963249919,0.21498,2328.0,2326.6,6.95213631]
[1769963250121,7.46983181,2328.1,2326.6,6.95213631]
[1769963250332,7.46983181,2327.9,2326.3,3.872]
[1769963250526,0.21504,2327.4,2326.3,10.82813218]
[1769963250722,0.21504,2327.3,2326.3,3.87599587]
[1769963250928,0.21508,2326.9,2325.4,6.95213631]
[1769963251725,0.00495106,2327.9,2325.6,6.95213631]
[1769963252025,0.21501,2327.7,2325.9,6.95213631]
[1769963252433,0.00495106,2327.9,2325.9,6.95213631]
[1769963252731,0.00495106,2327.9,2326.2,6.95213631]
[1769963252932,0.00495106,2327.9,2326.4,6.95213631]
[1769963253728,0.21994106,2327.9,2326.4,6.95213631]
[1769963253926,0.21502,2327.5,2326.4,6.95213631]
[1769963255333,0.21504,2327.3,2326.4,6.95213631]
[1769963255626,0.21504,2327.3,2325.7,8.79514908]
[1769963255627,0.21509,2326.8,2325.6,0.00543799]
[1769963255827,7.46983181,2326.7,2325.6,0.00543799]
[1769963256331,0.21515,2326.1,2325.6,0.00543799]
[1769963256530,0.21985329,2326.1,2325.6,0.00543799]
[1769963256930,0.21985329,2326.1,2325.1,3.871]
[1769963257332,0.21516,2326.0,2325.1,3.871]
[1769963257726,0.00470329,2326.1,2325.1,11.15826643]
[1769963257924,0.21505,2327.2,2325.4,7.28726643]
[1769963258127,7.28129271,2327.3,2325.5,7.28726643]
[1769963258534,7.28129271,2327.0,2325.5,7.28726643]
[1769963258932,7.28460129,2327.0,2325.5,7.29186098]
[1769963259133,0.21513,2326.4,2325.5,7.29186098]
[1769963259630,0.21514,2326.2,2325.5,0.00459455]
[1769963259936,0.21517,2326.0,2325.5,0.00459455]
[1769963260132,0.00330858,2327.0,2325.5,7.29186098]
[1769963260935,0.21509,2326.8,2325.5,7.29186098]
[1769963261129,0.21513,2326.4,2325.5,7.29186098]
[1769963261528,7.28129271,2326.8,2325.5,0.00459455]
[1769963261735,0.21511,2326.6,2325.5,7.29186098]
[1769963261939,0.00330858,2327.0,2325.5,7.29186098]
[1769963262239,0.00330858,2327.0,2325.6,7.28726643]
[1769963262433,0.00330858,2327.0,2325.6,9.7771394]
[1769963262638,0.21508,2326.9,2325.7,7.28726643]
[1769963263139,0.00330858,2327.0,2325.7,7.28726643]
[1769963263534,0.00330858,2327.0,2325.9,7.28726643]
[1769963263737,0.21499,2327.9,2326.1,9.7771394]
[1769963264037,0.21499,2327.9,2326.5,7.28726643]
[1769963264239,7.28129271,2328.5,2326.5,7.28726643]
[1769963264534,0.215,2327.8,2326.5,7.28726643]
[1769963264732,0.21828573,2327.8,2326.5,7.28726643]
[1769963264928,0.21501,2327.7,2326.5,7.28726643]
[1769963265133,0.00328573,2327.8,2326.5,7.28726643]
[1769963265639,0.21503,2327.5,2326.5,7.28726643]
[1769963267044,0.21505,2327.2,2326.0,6.79092655]
[1769963267733,0.21506,2327.1,2326.0,6.79092655]
[1769963267933,0.21508,2327.0,2326.0,6.79092655]
[1769963268341,7.07320679,2327.2,2326.0,6.79092655]
[1769963268537,0.00328573,2327.8,2326.2,7.00606655]
[1769963268737,0.00328573,2327.8,2326.5,6.79092655]
[1769963269333,7.07649252,2327.8,2326.1,6.79092655]
[1769963269534,0.00328573,2327.8,2326.1,6.79092655]
[1769963270643,0.21503,2327.5,2326.1,6.79092655]
[1769963272542,0.00328573,2327.8,2326.1,9.28079952]
[1769963272736,0.21503,2327.5,2326.3,6.79092655]
[1769963272940,0.00328573,2327.8,2326.3,6.79092655]
[1769963273141,0.00328573,2327.8,2326.4,9.28079952]
[1769963273339,0.00328573,2327.8,2326.5,12.00992655]
[1769963273651,0.21497,2328.1,2326.7,9.28079952]
[1769963273847,7.07320679,2329.0,2326.9,6.79092655]
[1769963274043,7.07320679,2328.9,2327.0,6.79092655]
[1769963274239,7.07320679,2328.4,2326.6,10.66092655]
[1769963274445,0.21502,2327.6,2326.6,10.66092655]
[1769963274643,7.07320679,2327.4,2325.5,2.49446752]
[1769963274845,0.21512,2326.5,2325.5,0.00459455]
[1769963275041,0.21513,2326.4,2325.5,0.00459455]
[1769963275242,7.07320679,2327.1,2325.5,0.00459455]
[1769963275545,7.07320679,2327.3,2325.6,2.48987297]
[1769963275944,0.21509,2326.9,2325.6,2.48987297]
[1769963276144,0.21509,2326.9,2325.7,2.48987297]
[1769963276347,0.21502,2327.5,2325.7,2.48987297]
[1769963276547,0.00445059,2327.6,2325.9,2.48987297]
[1769963276548,0.21504,2327.3,2325.9,2.48987297]
[1769963276743,0.21504,2327.3,2326.0,6.79092655]
[1769963276945,7.07765738,2327.6,2326.0,6.79092655]
[1769963277144,0.21508,2326.9,2326.0,6.79092655]
[1769963277341,7.07320679,2327.2,2325.5,0.00459455]
[1769963277643,7.07320679,2327.0,2325.5,0.00459455]
[1769963277849,0.21515,2326.1,2324.8,6.79092655]
[1769963278052,0.21515,2326.1,2324.9,6.79092655]
[1769963278248,7.07320679,2326.5,2324.9,9.28079952]
[1769963278249,0.21517,2326.0,2324.9,9.28079952]
[1769963278447,7.07320679,2327.3,2325.4,6.79092655]
[1769963278642,7.07320679,2327.3,2325.7,6.79092655]
[1769963278848,0.00445059,2327.6,2325.8,6.79092655]
[1769963279048,0.21947059,2327.6,2326.1,6.79092655]
[1769963279246,0.00445059,2327.6,2326.1,6.79092655]
[1769963279644,0.21947059,2327.6,2326.2,6.79092655]
[1769963280149,0.00445059,2327.6,2326.3,9.28079952]
[1769963280352,0.00445059,2327.6,2326.4,14.48779952]
[1769963280555,7.07320679,2328.7,2326.9,6.79092655]
[1769963280753,0.21499,2327.9,2326.9,6.79092655]
[1769963281349,7.07320679,2329.1,2327.1,6.79092655]
[1769963281548,7.07725906,2329.1,2327.3,6.79092655]
[1769963281745,7.07320679,2328.3,2326.9,6.79092655]
[1769963281948,0.21502,2327.6,2326.4,10.66092655]
[1769963282158,0.21502,2327.6,2326.5,6.79092655]
[1769963282346,7.07320679,2328.4,2326.6,6.79092655]
[1769963282655,0.21498,2328.0,2326.6,6.79092655]
[1769963282957,7.07320679,2327.4,2325.7,6.79475039]
[1769963283253,7.07320679,2327.4,2325.6,1.43e-06]
[1769963283254,0.21518,2325.8,2325.6,1.43e-06]
[1769963283453,0.21519,2325.7,2324.8,6.79092655]
[1769963283959,0.21524,2325.2,2324.1,6.79092655]
[1769963284157,0.00486998,2325.2,2324.1,6.79482047]
[1769963284350,0.21526,2325.0,2324.1,6.79482047]
[1769963284551,0.2152,2325.6,2324.1,6.79482047]
[1769963284951,0.2152,2325.6,2324.2,9.31236267]
[1769963285146,6.40128672,2326.3,2324.2,6.79092655]
[1769963285355,6.40128672,2325.7,2324.1,0.00389392]
[1769963285548,3.871,2325.6,2324.1,0.00389392]
[1769963285850,0.21527,2324.9,2324.1,0.00389392]
[1769963286054,0.2153,2324.5,2323.4,6.79092655]
[1769963286358,0.2153,2324.5,2322.9,2.52143612]
[1769963286359,7.28850679,2324.6,2323.0,6.79092655]
[1769963286658,0.21524,2325.2,2323.0,6.79092655]
[1769963286854,7.07320679,2326.3,2323.8,6.79092655]
[1769963287048,0.21521,2325.5,2324.0,6.79092655]
[1769963287248,7.07320679,2325.8,2323.9,3.871]
[1769963287547,7.07320679,2325.8,2323.8,0.00506497]
[1769963287548,0.21529,2324.7,2323.8,0.00506497]
[1769963287752,0.21529,2324.7,2323.8,6.89931745]
[1769963288058,6.785,2325.5,2323.8,6.89931745]
[1769963288059,0.21523,2325.3,2323.8,6.89931745]
[1769963288359,0.21527,2324.8,2323.8,6.89931745]
[1769963288560,7.50526909,2325.0,2323.8,0.00506497]
[1769963288849,0.2153,2324.5,2323.8,0.00506497]
[1769963289053,7.50526909,2325.4,2323.8,6.89931745]
[1769963289251,0.21524,2325.1,2323.8,6.89931745]
[1769963289754,0.21522,2325.4,2323.8,6.89931745]
[1769963290052,0.21523,2325.3,2323.8,6.89931745]
[1769963290250,0.00340505,2325.4,2323.8,6.89931745]
[1769963290251,0.21524,2325.2,2323.8,6.89931745]
[1769963290451,0.00340505,2325.4,2323.9,6.89425248]
[1769963290653,0.21521,2325.5,2324.1,6.89425248]
[1769963290857,0.21515,2326.2,2324.1,6.89425248]
[1769963291353,0.21522,2325.4,2324.1,6.89425248]
[1769963291552,0.21524,2325.2,2324.1,6.89425248]
[1769963291958,0.21519,2325.7,2324.1,6.89425248]
[1769963292157,0.21521,2325.5,2324.1,6.89425248]
[1769963292459,0.21515,2326.1,2324.1,6.89425248]
[1769963292660,0.21518,2325.8,2324.1,6.89425248]
[1769963293061,0.21519,2325.7,2324.1,6.89425248]
[1769963293355,0.21522,2325.4,2324.1,6.89425248]
[1769963293560,0.21524,2325.2,2324.1,6.89425248]
[1769963295956,0.2152,2325.6,2324.1,6.89425248]
[1769963296160,2.523,2326.6,2324.1,6.89425248]
[1769963296161,7.50526909,2325.7,2324.1,6.89425248]
[1769963296460,7.50526909,2325.7,2323.8,6.89931745]
[1769963296461,7.50526909,2325.2,2323.8,6.89931745]
[1769963296963,0.2153,2324.5,2323.8,0.00506497]
[1769963298166,7.50526909,2325.2,2323.8,6.89931745]
[1769963298351,0.21527,2324.9,2323.8,6.89931745]
[1769963298550,0.21522,2325.4,2323.8,6.89931745]
[1769963298758,0.21523,2325.3,2323.8,6.89931745]
[1769963299155,0.21523,2325.3,2323.8,10.30525694]
[1769963299361,0.21525,2325.0,2323.9,6.89425248]
[1769963299558,7.50526909,2325.6,2323.9,6.89425248]
[1769963300362,7.50526909,2325.6,2323.8,0.00506497]
[1769963300363,7.50526909,2325.2,2323.8,0.00506497]
[1769963300557,10.27428672,2326.1,2323.8,0.00506497]
[1769963300558,7.50526909,2325.0,2323.8,0.00506497]
[1769963300758,0.2153,2324.6,2323.8,6.89931745]
[1769963301054,7.50526909,2325.1,2323.8,6.89931745]
[1769963301259,0.21531,2324.4,2323.8,6.89931745]
[1769963301658,0.21532,2324.3,2323.8,0.00506497]
[1769963301860,7.50526909,2324.8,2323.4,6.89425248]
[1769963302056,0.21533,2324.2,2323.4,6.89425248]
[1769963302257,11.37826909,2325.0,2323.4,6.89425248]
[1769963302463,0.21528,2324.7,2323.4,6.89425248]
[1769963302658,7.50526909,2325.8,2323.8,6.89425248]
[1769963302963,7.50526909,2325.6,2323.9,6.89425248]
[1769963303255,0.00389046,2325.8,2323.8,3.87847764]
[1769963303256,7.50526909,2324.9,2323.8,0.00547764]
[1769963303456,0.21535,2324.0,2323.8,7.64e-06]
[1769963303658,0.21537,2323.8,2323.0,6.89425248]
[1769963304065,0.21532,2324.3,2323.0,6.89425248]
[1769963304364,0.21537,2323.7,2323.0,6.89425248]
[1769963304563,0.22026101,2323.7,2323.0,6.89950529]
[1769963304863,7.50526909,2324.4,2323.0,6.89950529]
[1769963305059,0.21532,2324.4,2323.0,6.89950529]
[1769963305262,0.21532,2324.3,2323.0,6.89950529]
[1769963305562,7.50526909,2324.9,2323.1,6.89425248]
[1769963305763,7.50962703,2324.9,2323.1,6.89425248]
[1769963305962,0.21533,2324.3,2323.1,6.89425248]
[1769963306557,0.00435794,2324.9,2323.1,6.89425248]
[1769963306558,7.50962703,2324.9,2323.1,6.89425248]
[1769963306764,0.21533,2324.2,2323.1,6.89425248]
[1769963307062,7.50962703,2324.9,2323.1,6.89425248]
[1769963307467,0.21532,2324.3,2323.1,6.89425248]
[1769963308262,0.21538,2323.7,2323.0,0.00525281]
[1769963308762,7.50526909,2323.7,2322.2,6.89425248]
[1769963309068,7.72066909,2323.4,2321.5,6.89425248]
[1769963309368,0.21541,2323.3,2321.7,6.89425248]
[1769963309764,7.50526909,2323.4,2321.7,6.89765035]
[1769963309964,0.21543,2323.1,2321.7,6.89765035]
[1769963310164,7.50922985,2323.1,2321.7,6.89765035]
[1769963310366,0.21547,2322.7,2321.7,6.89765035]
[1769963310565,7.50922985,2323.1,2321.7,6.89765035]
[1769963310961,0.21548,2322.6,2321.7,6.89765035]
[1769963311767,0.21544,2323.0,2321.7,6.89765035]
[1769963311967,0.21545,2322.9,2321.7,6.89765035]
[1769963312671,0.21547,2322.7,2321.7,6.89765035]
[1769963313470,0.21548,2322.6,2321.7,6.89765035]
[1769963314670,0.21549,2322.5,2321.7,6.89765035]
[1769963315481,0.21544,2323.0,2321.7,6.89765035]
[1769963315872,0.21546,2322.8,2321.7,6.89765035]
[1769963317277,0.00396076,2323.1,2321.7,6.89765035]
[1769963317278,0.21541,2323.3,2321.7,6.89765035]
[1769963317479,0.21541,2323.3,2322.0,7.08607401]
[1769963317773,0.21541,2323.3,2322.2,7.08607401]
[1769963317972,0.21536,2323.9,2322.2,7.08607401]
[1769963318174,0.21538,2323.7,2322.2,7.08607401]
[1769963318369,0.21915129,2323.7,2322.2,7.08607401]
[1769963318573,0.2154,2323.4,2322.2,7.08607401]
[1769963319070,6.87870561,2323.7,2322.2,7.08607401]
[1769963319274,0.21544,2323.1,2322.2,7.08607401]
[1769963319475,0.21915129,2323.7,2322.2,7.08607401]
[1769963319676,0.00377129,2323.7,2322.2,7.08607401]
[1769963320274,0.2153,2324.6,2322.5,9.60751013]
[1769963320574,6.87493432,2325.0,2323.0,7.08607401]
[1769963320771,6.87493432,2324.8,2323.0,7.08607401]
[1769963320967,0.2153,2324.5,2323.0,10.96207401]
[1769963321169,6.87493432,2325.1,2323.3,7.08607401]
[1769963321467,6.87810668,2325.1,2323.3,7.08607401]
[1769963321671,0.21525,2325.0,2323.3,7.08607401]
[1769963321870,0.21526,2324.9,2323.4,7.08607401]
[1769963322072,0.21526,2324.9,2323.5,7.08607401]
[1769963323880,0.00317236,2325.1,2323.5,7.08607401]
[1769963324177,0.00317236,2325.1,2323.6,7.08607401]
[1769963324569,0.00317236,2325.1,2323.6,13.01344962]
[1769963324772,0.00317236,2325.1,2323.7,6.96215575]
[1769963324978,6.87493432,2325.9,2324.2,6.96215575]
[1769963325175,0.2152,2325.7,2324.2,6.96215575]
[1769963325381,6.98548712,2326.2,2324.3,6.96215575]
[1769963325585,0.21522,2325.4,2324.3,6.96215575]
[1769963326277,0.21522,2325.4,2324.3,10.83815575]
[1769963326474,0.21522,2325.4,2324.4,6.96215575]
[1769963326675,6.98548712,2325.8,2324.4,6.96215575]
[1769963326883,0.21522,2325.4,2324.4,6.96215575]
[1769963328282,0.21523,2325.3,2324.4,6.96215575]
[1769963328486,0.21523,2325.2,2324.4,6.96215575]
[1769963328884,0.21524,2325.1,2324.4,6.96215575]
[1769963329179,0.21524,2325.1,2323.7,8.999]
[1769963329180,0.21529,2324.6,2323.7,6.96215575]
[1769963329573,6.98548712,2324.9,2323.7,6.96215575]
[1769963329777,0.21531,2324.4,2323.7,6.96215575]
[1769963329979,0.21532,2324.3,2323.4,0.00354316]
[1769963330180,0.21532,2324.3,2323.4,6.96569891]
[1769963330381,0.21533,2324.2,2323.4,6.96569891]
[1769963330678,0.21535,2324.0,2323.4,6.96569891]
[1769963331280,0.21537,2323.8,2323.4,0.00354316]
[1769963331584,0.21534,2324.1,2323.0,6.96215575]
[1769963332387,0.21535,2324.0,2323.0,6.96752422]
[1769963332577,0.21537,2323.8,2323.0,6.96752422]
[1769963333085,0.2154,2323.4,2322.5,6.96215575]
[1769963333380,0.21541,2323.3,2322.5,6.96215575]
[1769963333575,0.21542,2323.2,2322.5,6.96215575]
[1769963333776,6.98548712,2323.6,2322.1,6.96215575]
[1769963333983,6.98548712,2323.2,2322.1,0.00498821]
[1769963334180,0.21549,2322.5,2322.1,0.00498821]
[1769963334380,6.40128672,2323.8,2321.0,2.52143612]
[1769963334381,0.21551,2322.2,2321.0,6.96215575]
[1769963334782,7.05661177,2322.6,2321.0,6.96215575]
[1769963334975,6.91648712,2322.6,2320.8,6.96215575]
[1769963335286,0.2155,2322.4,2320.8,6.96724342]
[1769963335483,0.2155,2322.3,2320.8,6.96724342]
[1769963336388,0.0050618,2322.6,2320.8,6.96724342]